bitfinex/quotes_ETHUSD_20250428
["timestamp","ask_amount","ask_price","bid_price","bid_amount"]
[1745836463485,0.409204,1804.3,1804.0,10.0]
[1745836463699,3.409204,1804.3,1804.1,5.159]
[1745836464001,0.409204,1804.3,1804.1,6.6749]
[1745836464831,5.81244313,1805.2,1805.0,0.73111159]
[1745836465028,5.32888841,1805.0,1804.7,5.159]
[1745836465228,4.38859553,1804.8,1804.2,0.55]
[1745836465455,5.32888841,1804.7,1804.6,5.159]
[1745836466231,5.86177725,1804.7,1803.9,0.55]
[1745836466426,4.38859553,1804.5,1804.0,5.159]
[1745836467101,7.38859553,1804.5,1804.0,5.159]
[1745836467504,7.38859553,1804.5,1804.1,5.159]
[1745836467505,4.38859553,1804.3,1804.1,5.159]
[1745836467818,6.30608841,1804.2,1803.7,16.635]
[1745836468022,5.32888841,1804.1,1803.8,6.8225]
[1745836468344,5.32888841,1804.1,1803.9,0.55]
[1745836468723,5.32888841,1804.1,1803.8,6.8225]
[1745836469032,9.71748394,1804.1,1803.8,5.159]
[1745836470143,5.32888841,1804.1,1803.8,5.159]
[1745836470503,13.70428394,1804.0,1803.9,5.159]
[1745836473169,5.32888841,1804.0,1803.9,5.159]
[1745836473463,5.32888841,1804.0,1803.9,5.77289]
[1745836473841,5.32888841,1804.0,1803.9,6.32289]
[1745836474765,5.32888841,1804.0,1803.9,7.40869]
[1745836475677,5.32888841,1804.4,1804.0,0.55]
[1745836475878,5.32888841,1804.4,1804.0,1.290869]
[1745836476181,5.32888841,1804.4,1804.1,1.0646]
[1745836478259,5.32888841,1804.4,1804.2,0.55]
[1745836478458,5.32888841,1804.4,1804.3,5.158]
[1745836478779,5.32888841,1804.6,1804.4,0.55]
[1745836479078,5.32888841,1804.6,1804.5,1.5823]
[1745836479402,5.32888841,1805.1,1804.6,0.55]
[1745836479679,5.32888841,1805.0,1804.8,0.55]
[1745836479843,5.32888841,1805.0,1804.8,1.1207]
[1745836480278,5.32888841,1805.0,1804.9,1.0947]
[1745836480449,5.32888841,1805.0,1804.9,1.6447]
[1745836482173,5.32888841,1805.0,1804.9,5.6727]
[1745836482374,5.32888841,1805.8,1804.9,7.2448]
[1745836482691,4.38859553,1805.6,1805.0,0.55]
[1745836482861,4.38859553,1805.4,1805.1,5.157]
[1745836483076,4.077,1805.7,1805.2,0.55]
[1745836483273,3.0,1805.7,1805.3,1.0194]
[1745836483491,5.32888841,1805.8,1805.4,0.55]
[1745836483812,9.71748394,1805.8,1805.5,5.157]
[1745836484301,6.38608841,1805.8,1805.5,5.157]
[1745836484473,10.77468394,1805.8,1805.5,5.157]
[1745836484686,3.0,1805.7,1805.5,5.157]
[1745836484864,1.0572,1805.5,1804.9,1.0333]
[1745836485069,4.38859553,1805.3,1805.0,5.156]
[1745836485305,4.38859553,1805.1,1804.7,1.0333]
[1745836485464,9.71748394,1805.3,1804.7,2.16943438]
[1745836485664,9.71748394,1805.3,1804.8,0.55]
[1745836485904,9.71748394,1805.3,1804.7,2.16943438]
[1745836486402,9.71748394,1805.3,1804.8,0.55]
[1745836486966,5.32888841,1805.3,1804.8,0.55]
[1745836487601,9.71748394,1805.3,1804.8,0.55]
[1745836487763,10.68923233,1805.3,1804.8,0.55]
[1745836487967,4.38859553,1805.1,1804.7,1.0333]
[1745836488173,0.9987,1805.8,1804.8,6.56619621]
[1745836488483,5.38729553,1805.8,1805.1,0.55]
[1745836488689,4.38859553,1805.6,1805.2,5.155]
[1745836488889,4.38859553,1805.4,1805.2,5.155]
[1745836490754,3.0,1805.3,1805.2,5.155]
[1745836490905,4.0906,1805.3,1805.2,5.155]
[1745836491231,4.0906,1805.3,1804.8,5.155]
[1745836491537,4.38859553,1805.1,1804.8,5.155]
[1745836492024,5.47919553,1805.3,1804.9,0.55]
[1745836492226,4.38859553,1805.3,1804.9,1.5752]
[1745836493035,4.38859553,1805.5,1804.9,1.5752]
[1745836494135,5.32888841,1805.4,1805.0,0.9975]
[1745836494333,5.32888841,1805.4,1805.1,0.55]
[1745836494542,5.32888841,1805.4,1805.2,6.1904]
[1745836494843,5.32888841,1805.4,1805.3,0.61904]
[1745836495519,5.32888841,1805.4,1805.3,2.22384]
[1745836497534,5.45359553,1805.8,1805.4,0.55]
[1745836497735,5.32888841,1805.7,1805.4,0.55]
[1745836498031,9.71748394,1805.6,1805.2,5.154]
[1745836498197,5.44889553,1805.4,1805.2,5.154]
[1745836498405,5.32888841,1805.3,1804.9,1.0717]
[1745836498615,9.71748394,1805.3,1804.9,1.0717]
[1745836498812,9.71748394,1805.3,1805.0,0.55]
[1745836498813,5.32888841,1805.3,1805.0,0.55]
[1745836499519,5.32888841,1805.3,1805.0,1.0903]
[1745836500022,5.32888841,1805.6,1805.1,0.55]
[1745836500225,5.32888841,1805.6,1805.4,0.55]
[1745836500421,4.38859553,1805.5,1805.2,5.154]
[1745836500641,4.38859553,1805.3,1805.2,5.154]
[1745836501636,6.42238841,1805.6,1805.2,5.154]
[1745836501637,4.38859553,1805.5,1805.2,5.154]
[1745836502436,4.38859553,1805.3,1805.2,5.154]
[1745836503232,4.38859553,1805.3,1804.9,1.0201]
[1745836503233,1.0555,1805.2,1804.8,5.154]
[1745836503401,4.38859553,1805.0,1804.8,5.154]
[1745836503601,8.32888841,1804.9,1804.8,5.154]
[1745836503849,3.0,1804.8,1804.3,1.0732]
[1745836504009,9.71748394,1804.7,1804.3,5.154]
[1745836504209,5.32888841,1804.7,1804.3,5.6694]
[1745836504414,5.32888841,1804.7,1804.4,1.0518]
[1745836504807,9.71748394,1804.7,1804.3,5.6694]
[1745836505129,4.38859553,1804.5,1804.3,5.6694]
[1745836505533,1.0739,1804.6,1804.3,5.6694]
[1745836505750,5.32888841,1804.7,1804.4,0.56694]
[1745836505950,5.32888841,1804.7,1804.5,0.55]
[1745836506158,5.32888841,1804.7,1804.6,1.0365]
[1745836506466,5.32888841,1804.7,1804.6,1.5865]
[1745836507110,5.32888841,1805.1,1804.9,0.55]
[1745836507337,5.32888841,1805.1,1805.0,5.226]
[1745836507539,5.32888841,1805.1,1805.0,5.776]
[1745836509157,5.32888841,1805.1,1805.0,6.7879]
[1745836509354,5.32888841,1805.5,1805.1,0.55]
[1745836509530,5.32888841,1805.5,1805.1,1.28379]
[1745836512249,5.32888841,1805.5,1805.2,1.0824]
[1745836512454,5.32888841,1805.5,1805.3,0.55]
[1745836512745,5.32888841,1805.5,1805.4,5.775]
[1745836513152,5.32888841,1805.9,1805.4,12.37413873]
[1745836513353,5.32888841,1805.9,1805.6,0.55]
[1745836514624,5.32888841,1805.8,1805.6,0.55]
[1745836516655,5.32888841,1805.8,1805.7,1.5832]
[1745836517854,0.409204,1806.1,1805.8,0.55881473]
[1745836518039,0.409204,1806.1,1805.9,5.224]
[1745836518359,0.409204,1806.1,1806.0,2.1657]
[1745836518920,0.409204,1806.1,1806.0,7.70279856]
[1745836519248,0.409204,1806.1,1806.0,2.1657]
[1745836520531,0.409204,1806.1,1806.0,7.70279856]
[1745836521158,0.409204,1806.1,1806.0,2.1657]
[1745836522043,0.409204,1806.1,1806.0,7.70279856]
[1745836522444,5.32888841,1806.8,1806.4,1.0883]
[1745836522760,5.32888841,1806.8,1806.5,5.773]
[1745836523334,5.32888841,1807.1,1806.5,5.773]
[1745836523535,5.32888841,1807.1,1806.7,0.55]
[1745836523749,5.32888841,1807.1,1806.9,0.55]
[1745836523952,5.32888841,1807.1,1807.0,5.773]
[1745836524258,5.32888841,1807.1,1807.0,6.4053]
[1745836524631,5.32888841,1807.1,1807.0,5.223]
[1745836525242,6.41278841,1807.1,1807.0,5.223]
[1745836525548,5.32888841,1807.1,1807.0,5.223]
[1745836526163,5.32888841,1807.1,1807.0,5.773]
[1745836526466,5.31733089,1807.1,1807.0,6.8659]
[1745836526651,5.31733089,1807.1,1807.0,7.55249]
[1745836528272,5.31733089,1807.1,1807.0,1.0929]
[1745836528474,5.31733089,1807.1,1806.9,5.222]
[1745836528769,10.71329992,1807.0,1806.5,17.705]
[1745836528978,4.36646903,1806.8,1806.3,1.087]
[1745836529147,4.36646903,1806.6,1806.3,1.087]
[1745836529350,5.31733089,1806.5,1806.3,0.6309]
[1745836529959,5.31733089,1806.5,1806.4,1.087]
[1745836530165,5.31733089,1806.9,1806.5,0.55]
[1745836530365,5.31733089,1806.9,1806.6,5.221]
[1745836530968,5.31733089,1806.9,1806.8,0.55]
[1745836533077,5.31733089,1806.9,1806.6,5.221]
[1745836533279,5.31733089,1806.9,1806.6,5.9033]
[1745836533668,5.31733089,1806.9,1806.6,5.73267147]
[1745836533966,5.30768261,1806.9,1806.6,5.73267147]
[1745836534354,6.32888261,1806.9,1806.6,5.73267147]
[1745836534581,5.30768261,1806.9,1806.6,5.73267147]
[1745836535878,5.30768261,1806.9,1806.7,1.12326715]
[1745836537441,1.0695,1806.8,1806.3,0.9961]
[1745836537641,4.36646903,1806.4,1806.0,6.2071]
[1745836537957,5.30768261,1806.4,1806.0,6.2071]
[1745836538268,5.29855367,1806.4,1806.0,6.2071]
[1745836538447,5.29855367,1806.4,1806.1,0.62071]
[1745836538649,5.29855367,1806.4,1806.2,0.55]
[1745836538864,5.29855367,1806.4,1806.1,0.62071]
[1745836539057,5.29855367,1806.4,1806.2,5.211]
[1745836539649,5.29855367,1806.4,1806.3,0.55]
[1745836539959,5.29855367,1806.4,1806.3,1.1261]
[1745836540765,5.29855367,1806.4,1806.3,2.1646]
[1745836541165,5.29855367,1806.4,1806.1,0.62071]
[1745836541372,5.29855367,1806.4,1806.3,5.211]
[1745836542387,5.29070556,1806.4,1806.3,5.211]
[1745836546079,6.34370556,1806.4,1806.3,5.211]
[1745836546288,3.0,1806.3,1806.2,5.211]
[1745836547564,8.45196903,1806.3,1806.2,5.211]
[1745836547875,8.45196903,1806.3,1806.0,5.212]
[1745836548055,8.45196903,1806.3,1806.0,5.7332]
[1745836548456,4.0855,1806.3,1806.0,5.7332]
[1745836549677,4.50992095,1806.3,1806.0,5.7332]
[1745836550276,4.50992095,1806.3,1806.0,5.212]
[1745836551385,5.29070556,1806.2,1806.0,5.212]
[1745836553582,1.0859,1806.0,1805.8,0.00881473]
[1745836553789,5.29070556,1805.9,1805.8,5.22081473]
[1745836553984,5.29070556,1805.9,1805.8,5.7428962]
[1745836554859,5.28274438,1805.9,1805.8,5.7428962]
[1745836555189,5.28274438,1805.9,1805.8,7.3402962]
[1745836556557,5.28274438,1806.2,1806.1,0.55]
[1745836558056,5.28274438,1806.7,1806.2,0.55]
[1745836558257,5.28274438,1806.6,1806.4,0.55]
[1745836558457,5.28274438,1806.6,1806.4,1.1262]
[1745836560390,5.28274438,1807.0,1806.6,0.55]
[1745836560591,5.28274438,1807.0,1806.8,0.55]
[1745836560796,5.28274438,1807.0,1806.7,5.212]
[1745836561094,5.28274438,1807.0,1806.8,0.5212]
[1745836563290,5.28274438,1807.0,1806.8,1.5208]
[1745836563490,5.28274438,1807.0,1806.9,0.55]
[1745836566007,5.28274438,1807.1,1806.9,0.55]
[1745836566724,5.28274438,1807.3,1806.9,0.55]
[1745836567417,5.28274438,1807.3,1806.8,1.5208]
[1745836567619,1.0247,1807.2,1806.8,1.0712]
[1745836567787,4.0247,1807.2,1806.9,5.152]
[1745836567993,8.393204,1807.9,1807.1,1.0734]
[1745836568189,8.393204,1807.9,1807.2,0.55]
[1745836568415,8.393204,1807.9,1807.4,0.55]
[1745836568618,3.0,1807.8,1807.3,5.152]
[1745836568926,1.0352,1807.7,1807.3,5.7222]
[1745836569720,1.0352,1807.7,1807.4,5.151]
[1745836570421,5.28274438,1807.8,1807.4,5.151]
[1745836570604,9.467604,1807.9,1807.5,1.0536]
[1745836572125,9.467604,1807.9,1807.4,5.151]
[1745836574839,5.28274438,1807.8,1807.5,0.55]
[1745836575002,5.28274438,1807.8,1807.6,1.0882]
[1745836575334,8.393204,1807.9,1807.7,0.55]
[1745836575495,8.393204,1807.9,1807.8,5.15]
[1745836575922,8.393204,1807.9,1807.8,6.7318]
[1745836576124,8.393204,1807.9,1807.8,7.40498]
[1745836576693,8.393204,1807.9,1807.8,2.25498]
[1745836577061,8.393204,1807.9,1807.8,6.7318]
[1745836578629,8.393204,1807.9,1807.8,6.1818]
[1745836578929,8.393204,1807.9,1807.8,6.7318]
[1745836580906,8.393204,1807.9,1807.8,6.1818]
[1745836581093,8.393204,1807.9,1807.8,6.7318]
[1745836581297,8.393204,1807.9,1807.8,7.40498]
[1745836582297,8.393204,1807.9,1807.8,5.82318]
[1745836584200,13.67594838,1807.9,1807.7,5.149]
[1745836584589,10.69921341,1807.8,1807.1,0.9915]
[1745836584852,5.28274438,1807.7,1807.1,0.9915]
[1745836585056,8.393204,1807.9,1807.1,0.9915]
[1745836585349,5.28274438,1807.8,1807.3,1.0875]
[1745836585497,1.0731,1807.7,1807.4,5.149]
[1745836585700,1.0731,1807.7,1807.4,5.77265]
[1745836585900,1.0731,1807.7,1807.4,0.62365]
[1745836586142,5.28274438,1807.6,1807.5,5.149]
[1745836587456,5.28274438,1807.6,1807.3,1.0875]
[1745836587608,5.28274438,1807.6,1807.4,5.699]
[1745836588123,5.27410576,1807.6,1807.4,5.699]
[1745836589324,8.393204,1807.9,1807.4,5.699]
[1745836589523,8.393204,1807.9,1807.5,1.6079]
[1745836590048,4.36646903,1807.7,1807.5,5.149]
[1745836590255,5.36046903,1807.7,1807.5,5.149]
[1745836591824,4.0402,1807.6,1807.4,5.149]
[1745836592022,9.64057479,1807.5,1807.3,16.6]
[1745836592217,9.64057479,1807.5,1807.3,21.749]
[1745836592425,1.0402,1807.4,1807.3,5.149]
[1745836592754,1.0653,1807.3,1807.1,5.149]
[1745836593057,9.64057479,1807.2,1807.1,5.149]
[1745836593264,10.0491564,1807.2,1807.1,5.149]
[1745836594048,11.1100564,1807.2,1807.1,5.149]
[1745836594644,6.74358737,1807.2,1807.1,5.149]
[1745836594958,11.1100564,1807.2,1807.1,5.149]
[1745836595545,10.0491564,1807.2,1806.6,16.6]
[1745836595728,6.33500576,1807.1,1806.7,5.149]
[1745836596465,6.32524441,1807.1,1806.7,5.149]
[1745836601254,5.27410576,1807.0,1806.7,5.149]
[1745836602465,5.27410576,1807.0,1806.7,6.1985]
[1745836603450,5.27410576,1807.0,1806.7,5.149]
[1745836604406,5.27410576,1807.0,1806.7,5.156]
[1745836605755,5.27410576,1807.0,1806.6,18.36164]
[1745836606088,1.0164,1806.9,1806.6,18.36164]
[1745836606251,1.0164,1806.9,1806.6,21.756]
[1745836606252,6.29050576,1806.9,1806.6,21.756]
[1745836607751,6.29050576,1806.9,1806.6,16.6]
[1745836607958,6.29050576,1806.9,1806.6,21.756]
[1745836608584,7.35620324,1806.9,1806.6,5.156]
[1745836608784,6.29050576,1806.9,1806.6,5.156]
[1745836609861,5.27410576,1806.8,1806.6,5.156]
[1745836612601,5.27410576,1806.8,1806.6,6.2221]
[1745836612986,5.26495681,1806.8,1806.6,6.2221]
[1745836615955,5.26495681,1806.8,1806.6,5.156]
[1745836616158,5.26495681,1806.8,1806.6,5.77363]
[1745836618063,5.26495681,1806.8,1806.7,5.157]
[1745836621263,5.25858666,1806.8,1806.7,5.157]
[1745836625073,5.66716827,1807.2,1806.8,0.55]
[1745836625274,5.25858666,1807.2,1807.0,0.55]
[1745836625496,5.25076557,1807.2,1807.1,5.156]
[1745836625700,5.25076557,1807.2,1807.1,5.706]
[1745836625914,5.25076557,1807.6,1807.1,6.7252]
[1745836626209,5.25076557,1807.6,1807.3,1.0192]
[1745836627692,5.67100129,1807.6,1807.3,1.0192]
[1745836629109,5.25076557,1807.6,1807.4,0.55]
[1745836629314,5.25076557,1807.6,1807.5,5.15]
[1745836630021,5.25076557,1807.6,1807.5,5.15]
[1745836630377,5.25076557,1807.6,1807.5,6.6889]
[1745836630679,8.393204,1807.9,1807.5,7.35779]
[1745836631008,8.393204,1807.9,1807.8,0.55]
[1745836633794,8.38130926,1807.9,1807.8,0.55]
[1745836634012,8.38130926,1807.9,1807.8,1.6109]
[1745836638018,8.37341913,1807.9,1807.8,1.6109]
[1745836638797,8.37341913,1807.9,1807.8,2.32517186]
[1745836639113,8.37341913,1807.9,1807.8,1.6109]
[1745836642640,8.37341913,1807.9,1807.8,7.14248535]
[1745836643335,7.45757642,1807.9,1807.8,11.50895438]
[1745836643742,7.45757642,1807.9,1807.8,7.14248535]
[1745836644436,7.45757642,1807.9,1807.8,11.50895438]
[1745836644671,7.45757642,1807.9,1807.8,19.04201808]
[1745836644845,7.45757642,1807.9,1807.8,13.21301808]
[1745836645615,7.45757642,1807.9,1807.8,16.21301808]
[1745836646419,0.005,1808.6,1808.5,1.5808]
[1745836646625,0.005,1808.6,1808.5,6.7278]
[1745836647846,0.005,1808.6,1808.5,12.25724429]
[1745836648021,0.005,1808.6,1808.5,23.3228]
[1745836648222,0.005,1808.6,1808.5,25.65508]
[1745836648533,0.005,1808.6,1808.5,31.18452429]
[1745836649248,0.005,1808.6,1808.5,38.55099332]
[1745836649964,0.005,1808.6,1808.5,20.50808]
[1745836650116,0.005,1808.6,1808.5,25.65408]
[1745836650315,0.005,1808.6,1808.5,8.50908]
[1745836650553,0.005,1808.6,1808.5,5.146]
[1745836650750,1.0111,1808.6,1808.5,5.146]
[1745836650920,0.005,1808.6,1808.5,5.146]
[1745836651322,0.005,1808.6,1808.5,6.2171]
[1745836651570,0.005,1808.6,1808.5,6.7671]
[1745836651773,0.005,1808.6,1808.5,7.44381]
[1745836652069,0.005,1808.6,1808.5,6.89381]
[1745836652573,0.005,1808.6,1808.5,17.33972332]
[1745836652867,0.005,1808.6,1808.5,12.97325429]
[1745836653533,0.005,1808.6,1808.5,11.81027903]
[1745836653734,0.005,1808.6,1808.5,12.97325429]
[1745836654256,0.005,1808.6,1808.5,17.33972332]
[1745836655224,0.005,1808.6,1808.5,12.97325429]
[1745836655563,0.005,1808.6,1808.5,17.33972332]
[1745836656224,0.005,1808.6,1808.5,20.33972332]
[1745836656961,0.01,1808.7,1808.6,7.77606082]
[1745836657171,0.01,1808.7,1808.6,9.49932778]
[1745836657361,0.01,1808.7,1808.6,7.86936696]
[1745836657561,0.01,1808.7,1808.6,16.04170759]
[1745836657759,0.01,1808.7,1808.6,6.6961]
[1745836657970,0.01,1808.7,1808.6,5.145]
[1745836658168,0.01,1808.7,1808.6,6.1654]
[1745836658460,0.005,1809.2,1808.7,0.55]
[1745836658669,0.005,1809.2,1809.1,5.52761041]
[1745836658872,5.75e-06,1809.2,1809.1,28.87911041]
[1745836659171,1.0929,1810.1,1809.6,1.0695]
[1745836659368,1.0929,1810.1,1809.6,6.2125]
[1745836660263,1.0557,1810.6,1809.6,19.65505214]
[1745836660472,1.0557,1810.6,1809.6,19.61575214]
[1745836660767,5.25076557,1811.0,1809.6,17.76347521]
[1745836660768,4.36646903,1810.7,1809.6,17.76347521]
[1745836661076,1.0225,1810.3,1809.6,17.76347521]
[1745836661430,1.0549,1810.5,1809.6,17.76347521]
[1745836663265,1.0727,1810.8,1810.3,0.55]
[1745836663477,1.0727,1810.8,1810.4,5.141]
[1745836664538,6.33246557,1811.1,1810.5,0.55]
[1745836665283,6.33246557,1811.1,1810.7,0.55]
[1745836665448,1.0817,1811.1,1810.7,1.119]
[1745836665862,1.0559,1811.3,1810.7,1.119]
[1745836667749,1.0284,1811.1,1810.4,1.0038]
[1745836667955,1.0284,1811.1,1810.5,5.139]
[1745836668149,5.25076557,1811.4,1810.5,5.139]
[1745836668382,4.36646903,1811.3,1810.6,1.0038]
[1745836668547,9.6172346,1811.3,1810.7,0.55]
[1745836668744,10.68179806,1811.3,1810.7,0.55]
[1745836669141,6.31532903,1811.3,1810.7,0.55]
[1745836669476,1.0509,1811.2,1810.5,5.139]
[1745836669881,9.6172346,1811.1,1810.4,1.0041]
[1745836670091,4.36646903,1810.9,1810.5,5.139]
[1745836670255,1.09,1811.0,1810.5,5.6529]
[1745836670447,1.09,1811.0,1810.5,5.139]
[1745836670847,1.0441,1810.8,1810.5,5.139]
[1745836673955,1.0523,1811.0,1810.6,0.55]
[1745836674158,1.0523,1811.2,1810.6,0.55]
[1745836674474,1.0523,1811.2,1810.6,1.22674]
[1745836676293,5.25076557,1811.4,1810.8,0.55]
[1745836676488,5.25076557,1811.4,1810.9,5.138]
[1745836676662,1.032,1811.3,1810.9,5.138]
[1745836676854,5.25076557,1811.4,1810.9,5.138]
[1745836677164,0.409204,1811.5,1811.2,0.55]
[1745836677367,0.409204,1811.5,1811.4,1.642]
[1745836677986,0.409204,1811.5,1811.4,7.1625918]
[1745836678288,0.5,1812.7,1811.8,0.55]
[1745836678508,0.5,1812.7,1811.9,5.138]
[1745836678509,1.0255,1812.6,1811.9,5.138]
[1745836678660,0.5,1812.7,1811.9,5.138]
[1745836678991,1.0255,1812.6,1812.0,1.0638]
[1745836679195,1.0255,1812.6,1811.9,5.138]
[1745836679367,1.0255,1812.6,1812.0,0.55]
[1745836680289,1.0255,1812.6,1811.9,5.138]
[1745836680493,1.0255,1812.6,1812.0,0.55]
[1745836680695,4.86646903,1812.7,1812.1,1.0192]
[1745836680696,0.5,1812.7,1812.1,1.0192]
[1745836680895,0.5,1812.7,1812.3,0.55]
[1745836681194,0.5,1812.7,1812.4,5.136]
[1745836681396,3.0,1812.4,1811.5,1.0192]
[1745836681601,4.096,1812.2,1811.4,5.136]
[1745836681770,1.096,1812.2,1811.5,5.136]
[1745836682287,1.096,1812.2,1811.6,0.55]
[1745836683499,1.0119,1812.6,1811.7,1.0141]
[1745836683806,6.25349761,1812.6,1811.8,6.0692406]
[1745836684012,0.5,1812.7,1812.3,1.0141]
[1745836684198,0.5,1812.7,1812.4,5.686]
[1745836684808,0.5,1812.7,1812.4,5.136]
[1745836685960,0.5,1812.7,1812.3,16.566]
[1745836686163,0.5,1812.7,1812.4,5.134]
[1745836686367,3.5,1812.7,1812.3,21.7]
[1745836686710,0.35,1812.6,1812.3,21.7]
[1745836686877,1.021,1812.5,1812.3,21.7]
[1745836687516,1.521,1812.7,1812.3,21.7]
[1745836688677,1.047,1812.3,1811.1,1.0605]
[1745836689009,4.047,1812.3,1811.3,1.0605]
[1745836689195,1.047,1812.1,1811.3,1.69605]
[1745836689897,1.047,1812.1,1811.3,0.63555]
[1745836690397,1.047,1812.1,1811.4,5.295]
[1745836690588,3.0,1811.9,1811.4,5.295]
[1745836690787,6.25856557,1811.8,1811.4,5.295]
[1745836691018,0.62585656,1811.7,1811.4,5.295]
[1745836691203,1.0889,1811.6,1811.4,5.295]
[1745836691601,6.33966557,1811.6,1811.4,5.295]
[1745836692087,6.33116704,1811.6,1811.2,5.296]
[1745836693301,6.74463334,1811.6,1811.2,5.296]
[1745836693612,3.67446333,1811.5,1811.2,5.296]
[1745836693816,5.25076557,1811.4,1811.2,5.296]
[1745836694410,3.0,1811.3,1811.2,5.296]
[1745836695209,4.0741,1811.3,1811.2,5.296]
[1745836696218,4.06370224,1811.3,1811.2,5.296]
[1745836696516,1.0741,1811.3,1811.2,5.296]
[1745836697289,5.25076557,1811.4,1811.2,5.296]
[1745836697681,4.58043994,1811.8,1811.2,5.296]
[1745836697682,5.25076557,1812.1,1811.3,1.5255]
[1745836697885,6.30876557,1812.1,1811.3,18.0905]
[1745836698698,6.73265537,1812.1,1811.3,18.0905]
[1745836699231,3.0,1812.0,1811.3,18.0905]
[1745836700527,1.0736,1811.8,1811.3,17.0946]
[1745836700692,1.0736,1811.8,1811.4,1.70946]
[1745836700892,5.25076557,1811.7,1811.4,1.70946]
[1745836701518,5.25076557,1811.7,1811.5,0.9995]
[1745836703136,5.25076557,1812.0,1811.6,0.55]
[1745836703304,5.25076557,1812.0,1811.7,5.297]
[1745836704638,5.24454552,1812.0,1811.7,5.297]
[1745836704944,1.0571,1811.9,1811.7,5.297]
[1745836705236,5.76962208,1812.0,1811.7,5.297]
[1745836705237,8.24454552,1812.0,1811.7,5.297]
[1745836706345,5.24454552,1812.0,1811.7,5.297]
[1745836712441,9.82498546,1811.9,1811.2,5.296]
[1745836712759,4.58043994,1811.6,1811.2,6.373]
[1745836713271,5.24454552,1811.5,1811.2,5.296]
[1745836713948,6.29454552,1811.4,1811.2,5.296]
[1745836714520,5.24454552,1811.4,1811.2,5.296]
[1745836716379,5.24454552,1811.7,1811.3,1.0706]
[1745836716553,5.24454552,1811.7,1811.3,1.70726]
[1745836717073,5.23655732,1811.7,1811.3,1.70726]
[1745836718166,5.63183994,1811.6,1811.2,5.296]
[1745836718845,5.23655732,1811.5,1811.2,5.296]
[1745836719385,5.60113994,1811.3,1810.9,5.308]
[1745836719565,5.23655732,1811.2,1810.9,5.308]
[1745836721271,5.22688303,1811.2,1810.9,5.308]
[1745836724057,5.22688303,1811.2,1810.9,6.3036]
[1745836724259,5.22688303,1811.1,1810.9,6.3036]
[1745836724487,5.22688303,1811.1,1810.9,5.308]
[1745836725558,5.22688303,1811.2,1810.9,5.308]
[1745836725758,5.22688303,1811.2,1811.0,0.5308]
[1745836726191,5.22688303,1811.2,1811.1,1.0628]
[1745836726885,5.22688303,1811.2,1811.0,0.5308]
[1745836728258,5.22688303,1811.2,1810.9,5.308]
[1745836729573,5.21720473,1811.2,1810.9,5.308]
[1745836729889,1.0521,1811.1,1810.9,5.308]
[1745836730190,5.21720473,1811.0,1810.9,5.308]
[1745836732653,5.21720473,1811.0,1810.9,6.3727]
[1745836732870,5.21720473,1811.0,1810.9,7.00997]
[1745836733964,5.21720473,1811.0,1810.6,1.74144]
[1745836733965,9.56400194,1811.0,1810.6,1.74144]
[1745836734157,4.34679721,1810.8,1810.3,1.0647]
[1745836734362,6.30910473,1810.7,1810.3,1.0647]
[1745836734556,5.21720473,1810.7,1810.3,1.0647]
[1745836735061,5.21720473,1810.7,1810.2,5.309]
[1745836735062,1.0919,1810.6,1810.2,5.309]
[1745836735810,5.21720473,1810.7,1810.2,5.309]
[1745836735960,5.21720473,1810.7,1810.3,0.5309]
[1745836736860,0.9878,1811.0,1810.3,0.5309]
[1745836737057,0.9878,1811.0,1810.5,1.0458]
[1745836737463,0.9878,1811.0,1810.3,0.5309]
[1745836737464,3.9878,1811.0,1810.3,1.61]
[1745836737663,3.9878,1811.0,1809.7,22.09271845]
[1745836737664,1.0697,1810.8,1810.4,5.31]
[1745836737902,3.0,1810.7,1810.5,5.31]
[1745836738062,3.0,1810.7,1810.6,5.31]
[1745836738681,4.0509,1810.7,1810.6,5.31]
[1745836738909,8.63170848,1810.7,1809.9,1.0791]
[1745836739117,1.0509,1810.5,1810.0,5.31]
[1745836739311,5.64135067,1810.5,1810.0,5.31]
[1745836739592,5.64135067,1810.5,1809.9,16.569]
[1745836739823,1.0349,1810.3,1810.0,5.31]
[1745836740593,1.0349,1810.3,1810.0,7.59853]
[1745836741443,5.21720473,1810.4,1810.0,7.59853]
[1745836742201,5.21720473,1810.4,1810.0,5.31]
[1745836742537,1.0767,1810.3,1810.0,5.31]
[1745836744513,5.21720473,1810.4,1810.1,1.0116]
[1745836744704,6.23990473,1810.8,1810.2,0.55]
[1745836744905,5.21720473,1810.8,1810.2,0.55]
[1745836745122,5.7389252,1810.8,1810.3,5.311]
[1745836746338,5.21720473,1810.8,1810.3,5.311]
[1745836747110,5.21720473,1810.8,1810.4,0.9951]
[1745836747423,5.21720473,1810.8,1810.5,0.55]
[1745836747740,5.21720473,1810.8,1810.6,1.0071]
[1745836747916,5.21720473,1811.2,1810.6,1.0071]
[1745836748834,5.8424252,1811.2,1810.6,1.0071]
[1745836749552,5.8424252,1811.2,1810.7,5.235]
[1745836750238,4.05291648,1811.1,1810.8,5.235]
[1745836750436,4.05291648,1811.1,1810.9,5.235]
[1745836750613,5.62249638,1811.0,1810.8,5.235]
[1745836750818,1.0088,1810.9,1810.7,5.235]
[1745836752059,5.21720473,1811.0,1810.7,5.235]
[1745836753426,5.21720473,1811.0,1810.8,0.9895]
[1745836754577,5.21720473,1811.0,1810.7,5.235]